bitfinex-derivatives/quotes_ETHF0:USTF0_20241023
["timestamp","ask_amount","ask_price","bid_price","bid_amount"]
[1729702294074,3.2078,2511.3,2511.0,3.9824]
[1729702294278,5.6572,2511.7,2511.1,3.2078]
[1729702294672,0.39847,2511.5,2511.3,0.39849]
[1729702294867,4.65216728,2511.6,2511.4,0.39847]
[1729702295390,4.25370728,2511.6,2511.2,40.8]
[1729702295573,4.25370728,2511.6,2511.4,0.39847]
[1729702295574,4.65215728,2511.6,2511.4,0.39847]
[1729702295877,4.25370728,2511.6,2511.2,40.8]
[1729702296075,0.39847,2511.5,2511.4,0.39848]
[1729702296276,0.39847,2511.5,2511.3,0.39849]
[1729702296971,4.25370728,2511.6,2511.3,0.39849]
[1729702297166,0.39847,2511.5,2511.3,0.39849]
[1729702297369,0.39848,2511.4,2511.2,40.8]
[1729702297574,4.25370728,2511.6,2511.4,0.39848]
[1729702297776,4.65216728,2511.6,2511.4,0.39847]
[1729702297971,4.65215728,2511.6,2511.4,0.39847]
[1729702298173,4.25370728,2511.6,2511.5,0.39846]
[1729702298373,4.25370728,2511.6,2511.5,4.38006]
[1729702298686,4.25370728,2511.6,2511.4,47.8378]
[1729702298687,7.0378,2511.6,2511.4,40.8]
[1729702298871,3.9816,2511.5,2510.8,3.2078]
[1729702299076,0.39856,2510.9,2510.8,3.60637]
[1729702299275,4.20404,2511.3,2510.8,3.2078]
[1729702299473,4.20404,2511.3,2510.9,40.8]
[1729702299474,0.39855,2511.0,2510.9,40.8]
[1729702299876,0.39854,2511.1,2511.0,0.39854]
[1729702300071,0.39854,2511.0,2510.9,40.8]
[1729702300378,0.39864,2510.5,2510.4,0.39863]
[1729702300678,0.39865,2510.4,2510.3,41.19864]
[1729702300981,0.39865,2510.4,2510.3,0.39864]
[1729702301282,3.60643,2510.5,2510.4,0.39864]
[1729702301970,3.60643,2510.5,2510.1,40.8]
[1729702301971,0.39864,2510.4,2510.1,40.8]
[1729702302174,0.39864,2510.4,2510.2,0.39866]
[1729702302779,8.56266648,2510.3,2509.7,3.2078]
[1729702302987,0.39875,2509.7,2509.5,0.39878]
[1729702303188,3.2078,2509.8,2509.2,0.99708]
[1729702303478,3.2078,2509.8,2509.7,0.39875]
[1729702305479,3.2078,2509.8,2509.2,0.99708]
[1729702305686,3.2078,2509.8,2509.6,0.39875]
[1729702305893,3.2078,2509.8,2509.7,0.39875]
[1729702306880,3.2078,2509.8,2509.7,41.19875]
[1729702309288,3.2078,2509.8,2509.7,40.8]
[1729702309478,3.60653,2509.8,2509.7,40.8]
[1729702309683,7.59133,2509.8,2509.7,40.8]
[1729702310183,3.60653,2509.8,2509.7,40.8]
[1729702310580,0.39875,2509.7,2509.5,0.39877]
[1729702310783,3.2078,2509.8,2509.1,3.2078]
[1729702310983,3.2078,2509.5,2509.2,41.19882]
[1729702311183,0.3988,2509.4,2509.2,41.19882]
[1729702311385,3.2078,2509.5,2509.2,40.8]
[1729702311880,0.3988,2509.4,2509.2,41.19882]
[1729702312389,3.2078,2509.5,2509.2,40.8]
[1729702312887,0.3988,2509.4,2509.2,40.8]
[1729702313387,3.60658,2509.5,2509.2,40.8]
[1729702313589,0.39881,2509.4,2509.2,41.19882]
[1729702313789,4.64778188,2509.4,2509.2,41.19883]
[1729702314489,4.64778188,2509.4,2509.2,41.19882]
[1729702314686,0.39881,2509.3,2509.2,40.8]
[1729702315184,3.01301,2509.3,2509.2,40.8]
[1729702315584,0.39891,2508.7,2508.6,0.39892]
[1729702315781,0.39892,2508.6,2508.5,0.39893]
[1729702315986,0.39892,2508.6,2508.5,41.19893]
[1729702316680,5.5829,2509.0,2508.5,41.19893]
[1729702316886,0.39891,2508.7,2508.5,40.8]
[1729702317286,4.2679482,2508.6,2508.5,41.19893]
[1729702317485,4.6668682,2508.6,2508.5,41.19893]
[1729702317699,12.5643482,2508.6,2507.8,2.62893312]
[1729702317995,12.5643482,2508.6,2507.8,1.53073312]
[1729702317996,0.39903,2507.9,2507.8,1.53073312]
[1729702318183,3.2078,2508.0,2506.8,3.2078]
[1729702318385,9.95367,2508.5,2507.5,0.39909]
[1729702318386,3.2078,2507.7,2507.5,0.39909]
[1729702319390,3.2078,2507.7,2507.1,40.8]
[1729702319596,3.2078,2507.7,2507.4,0.39911]
[1729702319887,3.2078,2507.7,2507.1,40.8]
[1729702320095,3.2078,2507.7,2507.4,0.3991]
[1729702320292,3.2078,2507.7,2507.1,40.8]
[1729702320594,3.2078,2507.7,2506.7,3.2078]
[1729702320595,3.2078,2507.4,2506.7,3.2078]
[1729702320790,8.53936102,2507.6,2506.7,3.2078]
[1729702320791,3.2078,2507.1,2506.7,3.2078]
[1729702320995,3.2078,2507.1,2507.0,0.39918]
[1729702321201,3.2078,2507.1,2507.0,41.19918]
[1729702321690,3.2078,2507.1,2507.0,45.18798]
[1729702321894,2.5521,2507.7,2507.0,45.18798]
[1729702321895,3.2078,2507.5,2507.4,0.39911]
[1729702322492,4.52732862,2507.6,2507.4,0.39911]
[1729702322493,3.2078,2507.8,2507.7,0.39907]
[1729702322796,3.2078,2508.1,2508.0,0.39902]
[1729702323787,3.2078,2508.1,2508.0,41.19902]
[1729702324811,19.71112234,2508.1,2507.1,0.39915]
[1729702325092,19.71112234,2508.1,2505.7,1.56013454]
[1729702325093,0.39925,2506.6,2506.4,0.39927]
[1729702325294,3.2078,2507.4,2505.9,0.99837]
[1729702325295,3.83,2506.5,2505.9,3.2078]
[1729702325498,0.39934,2506.0,2505.9,3.2078]
[1729702325890,0.39934,2506.0,2505.1,4.82869]
[1729702325891,0.3994,2505.6,2505.1,3.2078]
[1729702326094,0.3994,2505.6,2505.0,0.99875]
[1729702326095,4.2294,2505.6,2505.4,0.39942]
[1729702326293,7.5278,2505.8,2504.9,3.2078]
[1729702326590,0.39934,2506.0,2505.8,0.39936]
[1729702326793,4.58379558,2505.7,2505.3,3.2078]
[1729702326998,0.39944,2505.4,2505.2,0.39946]
[1729702327204,3.2078,2505.7,2505.0,40.8]
[1729702327498,4.28794212,2505.6,2505.4,0.39943]
[1729702327702,0.39946,2505.3,2505.0,40.8]
[1729702328008,6.87094212,2505.6,2505.1,0.39947]
[1729702328198,6.87094212,2505.6,2505.3,0.39944]
[1729702328599,6.87094212,2505.6,2505.0,40.8]
[1729702328795,6.87094212,2505.6,2505.3,0.39944]
[1729702329097,3.2078,2505.7,2505.5,0.39941]
[1729702329299,3.2078,2505.7,2505.4,0.39942]
[1729702329505,3.2078,2505.7,2505.5,0.39941]
[1729702329807,3.2078,2505.7,2505.6,0.3994]
[1729702330303,3.2078,2505.7,2505.5,0.3994]
[1729702330499,3.2078,2505.7,2505.0,41.79872]
[1729702330692,3.2078,2505.7,2505.0,40.8]
[1729702330896,3.60719,2505.7,2505.4,0.39943]
[1729702331206,0.39944,2505.4,2505.1,0.39947]
[1729702331404,3.60724,2505.4,2505.1,0.39947]
[1729702331609,0.39948,2505.1,2505.0,40.8]
[1729702331900,0.39948,2505.1,2504.7,0.39954]
[1729702331901,0.39951,2505.0,2504.7,0.39954]
[1729702332102,4.32,2504.8,2503.4,3.2078]
[1729702332310,7.92754,2503.5,2503.0,0.39981]
[1729702332503,3.2078,2503.2,2502.9,40.8]
[1729702332709,2.444,2504.9,2503.3,0.39977]
[1729702332710,1.27098,2503.4,2503.3,0.39977]
[1729702333000,1.27098,2503.4,2502.9,41.79958]
[1729702333001,4.32,2503.5,2502.9,40.8]
[1729702333197,3.2078,2503.4,2502.9,40.8]
[1729702333399,7.59982671,2503.4,2502.9,40.8]
[1729702333795,7.59982671,2503.4,2503.3,0.39977]
[1729702333991,7.59982671,2503.4,2502.9,40.8]
[1729702334201,7.59982671,2503.4,2503.3,0.39977]
[1729702334400,3.2078,2503.4,2503.3,0.39977]
[1729702334610,1.874,2504.5,2503.6,0.39971]
[1729702334611,3.2078,2503.7,2503.6,0.39971]
[1729702335099,3.2078,2503.7,2503.6,4.39411]
[1729702335409,3.2078,2504.0,2503.6,3.9944]
[1729702335709,3.2078,2504.0,2503.8,0.39968]
[1729702335903,3.2078,2504.1,2504.0,0.39965]
[1729702336099,3.2078,2504.4,2504.3,0.39961]
[1729702336703,3.2078,2504.4,2504.3,4.39241]
[1729702337207,3.2078,2504.4,2504.3,45.19241]
[1729702337805,11.44103679,2504.4,2504.3,40.8]
[1729702338014,0.39966,2504.0,2503.6,2.79441]
[1729702338303,0.39966,2504.0,2503.5,0.39973]
[1729702338304,4.24043679,2503.9,2503.5,0.39973]
[1729702338497,4.24043679,2503.9,2503.6,40.8]
[1729702338899,3.2078,2503.7,2503.6,0.39972]
[1729702339302,7.2022,2503.7,2503.1,40.8]
[1729702339609,7.4104453,2503.7,2503.1,40.8]
[1729702339797,3.2078,2503.7,2503.6,0.39972]
[1729702340412,3.2078,2503.7,2503.6,4.39412]
[1729702340706,3.2078,2503.7,2503.6,0.39972]
[1729702341210,3.2078,2503.7,2503.6,41.19972]
[1729702341601,25.0,3484.0,2503.6,44.7944]
[1729702341602,3.2078,2504.0,2503.6,44.7944]
[1729702341801,3.2078,2504.0,2503.9,0.39967]
[1729702342816,3.2078,2504.3,2504.2,0.39962]
[1729702344705,3.2078,2504.6,2504.5,0.39958]
[1729702344897,3.2078,2504.6,2504.0,3.2078]
[1729702345304,3.2078,2504.6,2504.5,0.39958]
[1729702346604,3.2078,2504.6,2504.5,41.19958]
[1729702347204,3.60736,2504.6,2504.5,40.8]
[1729702347403,3.2078,2504.6,2504.5,41.19958]
[1729702347615,3.60736,2504.6,2504.5,40.8]
[1729702348007,0.99897,2504.5,2503.5,3.2078]
[1729702348202,0.99897,2504.5,2503.6,0.39971]
[1729702348203,3.60749,2503.8,2503.6,0.39971]
[1729702348409,3.60749,2503.8,2503.5,0.39973]
[1729702348410,0.39972,2503.7,2503.5,0.39973]
[1729702348614,4.59768469,2503.7,2503.6,40.8]
[1729702348813,4.19796469,2503.7,2503.3,0.39977]
[1729702349019,4.19796469,2503.7,2503.1,0.39979]
[1729702349020,0.39978,2503.3,2503.1,0.39979]
[1729702349207,0.39976,2503.4,2503.2,0.39977]
[1729702349412,3.2078,2503.5,2503.3,0.39977]
[1729702349714,4.69767601,2503.4,2503.2,41.19978]
[1729702350016,4.69767601,2503.4,2503.3,0.39977]
[1729702350219,0.39977,2503.3,2503.2,41.19978]
[1729702350411,4.69766601,2503.4,2503.2,40.8]
[1729702350621,3.2078,2503.5,2503.4,0.39975]
[1729702351412,4.32,2504.3,2503.7,0.3997]
[1729702351413,3.2078,2503.8,2503.7,0.3997]
[1729702351613,3.2078,2504.1,2504.0,0.39966]
[1729702352123,7.41459901,2504.1,2504.0,0.39966]
[1729702352318,3.2078,2504.1,2504.0,0.39966]
[1729702352519,3.2078,2504.1,2504.0,4.39326]
[1729702352819,2.3997,2505.0,2504.0,4.39326]
[1729702352820,3.2078,2504.6,2504.2,0.99905]
[1729702353123,3.2078,2504.6,2504.5,0.39958]
[1729702354521,3.60736,2504.6,2504.5,0.39958]
[1729702354822,3.2078,2504.6,2504.5,0.39958]
[1729702355023,3.60736,2504.6,2504.5,0.39958]
[1729702355222,3.2078,2504.6,2504.5,0.39958]
[1729702355422,3.60736,2504.6,2504.5,0.39958]
[1729702355623,3.2078,2504.6,2504.5,0.39958]
[1729702355922,2.5387,2504.9,2504.8,0.39953]
[1729702355923,3.2078,2504.9,2504.8,0.39953]
[1729702356110,2.5053,2505.2,2504.8,0.39953]
[1729702356319,3.2078,2505.3,2505.2,0.39946]
[1729702356723,3.2078,2505.3,2505.2,41.19946]
[1729702357921,5.31829,2506.2,2505.2,41.19946]
[1729702357922,3.2078,2505.7,2505.4,0.99856]
[1729702358223,7.42467961,2506.0,2505.4,3.2078]
[1729702358525,0.39936,2505.9,2505.7,0.39938]
[1729702358827,0.39936,2505.9,2505.4,3.2078]
[1729702358828,3.2078,2506.0,2505.4,3.2078]
[1729702359124,3.2078,2506.0,2505.9,0.39935]
[1729702359329,3.2078,2506.0,2505.8,0.39936]
[1729702359330,3.60714,2506.0,2505.8,0.39936]
[1729702359530,3.2078,2506.0,2505.4,3.2078]
[1729702359827,3.2078,2506.0,2505.9,0.39935]
[1729702360218,3.2078,2506.0,2505.4,3.2078]
[1729702360425,0.39936,2505.9,2505.8,0.39937]
[1729702360725,3.2078,2506.0,2505.9,0.39935]
[1729702361318,5.6559,2506.8,2506.0,0.99835]
[1729702361521,0.39923,2506.7,2506.5,0.39925]
[1729702361730,4.16823194,2506.7,2506.0,4.20615]
[1729702361921,4.16823194,2506.7,2506.5,0.39924]
[1729702361922,4.56746194,2506.7,2506.5,0.39924]
[1729702362124,4.16823194,2506.7,2506.6,0.39924]
[1729702362623,0.39927,2506.5,2506.3,0.39928]
[1729702363334,0.39927,2506.5,2506.4,40.8]
[1729702364434,3.60707,2506.5,2506.4,40.8]
[1729702365230,11.67587515,2506.5,2506.1,0.39931]
[1729702365425,3.2078,2506.2,2505.2,3.2078]
[1729702365633,3.2078,2505.9,2505.3,40.8]
[1729702365931,3.2078,2505.9,2505.8,0.39937]
[1729702366830,3.2078,2505.9,2505.4,0.39943]
[1729702366831,3.60716,2505.9,2505.4,0.39943]
[1729702367027,3.60716,2505.9,2505.7,0.39937]
[1729702367333,3.60716,2505.9,2505.3,41.79862]
[1729702367334,0.39952,2504.9,2504.7,0.39953]
[1729702367535,0.39954,2504.8,2504.6,0.39955]
[1729702367833,4.32601275,2504.8,2504.7,0.39954]
[1729702368234,3.2078,2505.1,2504.7,4.39234]
[1729702368529,3.60729,2505.1,2504.9,0.39951]
[1729702368737,3.2078,2505.1,2504.4,45.00676]
[1729702368928,3.2078,2505.1,2505.0,0.3995]
[1729702369127,3.2078,2505.1,2504.4,45.00676]
[1729702369327,0.39951,2504.9,2504.7,0.39953]
[1729702369838,3.60728,2505.1,2504.9,0.39951]
[1729702370839,3.2078,2505.1,2504.5,0.99895]
[1729702371134,4.87760276,2505.0,2504.8,0.39952]
[1729702371333,0.39952,2504.9,2504.7,0.39954]
[1729702371535,4.87760276,2505.0,2504.8,0.39952]
[1729702371941,4.47809276,2505.0,2504.9,0.39951]
[1729702372236,3.60729,2505.1,2504.9,0.39951]
[1729702372424,3.2078,2505.1,2505.0,0.3995]
[1729702372631,0.3995,2505.0,2504.9,0.39951]
[1729702372830,3.2078,2505.1,2505.0,0.3995]
[1729702374227,3.2078,2505.1,2505.0,4.3915]
[1729702374425,0.39941,2505.6,2505.5,0.39942]
[1729702374426,3.2078,2505.6,2505.5,0.39942]
[1729702375028,3.2078,2505.6,2505.5,41.19942]
[1729702376434,3.2078,2505.6,2505.5,45.19062]
[1729702376634,3.2078,2505.6,2505.5,41.19942]
[1729702377835,3.2078,2505.9,2505.5,45.19062]
[1729702378133,3.2078,2505.9,2505.8,0.39937]
[1729702378334,0.39938,2505.8,2505.6,0.39939]
[1729702378533,0.39938,2505.8,2505.7,0.39938]
[1729702378733,3.2078,2505.9,2505.5,40.8]
[1729702378936,3.2078,2505.6,2504.9,3.2078]
[1729702379133,0.39947,2505.2,2505.1,0.39947]
[1729702379334,0.39947,2505.2,2505.1,40.8]
[1729702379335,0.99867,2505.2,2505.1,40.8]
[1729702379641,0.99867,2505.2,2504.3,1.04008969]
[1729702379642,0.39955,2504.7,2504.6,0.39955]
[1729702379938,8.20730841,2505.2,2504.6,0.39955]
[1729702379939,0.39952,2504.9,2504.8,0.39952]
[1729702380134,3.2078,2504.9,2504.6,40.8]
[1729702380342,3.2078,2504.9,2504.6,41.19955]
[1729702380639,0.39954,2504.7,2504.6,41.19955]
[1729702381341,0.39954,2504.8,2504.7,0.39954]
[1729702381541,3.60732,2504.9,2504.8,0.39953]
[1729702381835,0.39954,2504.8,2504.7,0.39954]
[1729702382239,8.52766948,2504.8,2504.0,6.67431]
[1729702382542,8.14220948,2504.8,2504.7,0.39954]
[1729702382945,4.93440948,2504.8,2504.7,0.39954]
[1729702383145,4.53486948,2504.8,2504.7,0.39954]
[1729702383341,2.3727,2505.0,2504.4,0.99898]
[1729702383540,2.3727,2505.0,2504.3,4.20681]
[1729702383843,4.45984995,2504.9,2504.3,4.20681]
[1729702384241,4.45984995,2504.9,2504.4,0.99899]
[1729702384441,0.39954,2504.8,2504.7,0.39954]
[1729702384642,4.45984995,2504.9,2504.3,4.20681]
[1729702385045,0.39953,2504.8,2504.7,0.39953]
[1729702385440,4.85936995,2504.9,2504.8,0.39953]
[1729702385639,0.39953,2504.9,2504.5,0.99894]
[1729702385839,0.39953,2504.9,2504.8,0.39953]
[1729702386245,3.2078,2505.1,2504.9,0.3995]
[1729702386246,0.3995,2505.0,2504.9,0.3995]
[1729702386440,3.2078,2505.1,2505.0,0.3995]
[1729702386441,3.60729,2505.1,2505.0,0.3995]
[1729702386643,3.2078,2505.1,2504.5,0.99894]
[1729702386844,0.3996,2504.4,2504.3,0.39959]
[1729702387041,0.3996,2504.4,2504.2,40.8]
[1729702387042,0.39961,2504.3,2504.2,40.8]
[1729702387250,0.39969,2503.9,2503.8,0.39968]
[1729702387446,0.39968,2503.9,2503.8,0.39967]
[1729702387948,0.39967,2504.0,2503.9,0.39967]
[1729702388144,3.2078,2504.1,2503.7,41.84008969]
[1729702388342,0.39967,2503.9,2503.8,0.39968]
[1729702388543,3.2078,2504.1,2503.8,0.39968]
[1729702388747,3.2078,2504.1,2503.7,41.84008969]
[1729702388945,3.2078,2504.1,2504.0,0.39966]
[1729702389145,3.2078,2504.4,2504.3,0.39961]
[1729702389345,4.95,2504.7,2504.0,0.99911]
[1729702389346,5.34956,2504.7,2504.0,0.99911]
[1729702389543,4.15936185,2504.6,2504.5,0.39958]
[1729702389745,4.95,2504.7,2504.5,0.39958]
[1729702389944,4.95,2504.7,2504.0,0.99911]
[1729702390140,4.16828921,2504.6,2504.0,0.99911]
[1729702390346,0.39956,2504.6,2504.5,0.39958]
[1729702390552,4.16828921,2504.7,2504.4,0.39959]
[1729702390759,0.39959,2504.5,2504.3,0.3996]
[1729702390946,3.2078,2504.8,2504.0,0.99911]
[1729702390947,4.55887423,2504.7,2504.0,0.99911]
[1729702391155,0.39958,2504.5,2504.4,0.39959]
[1729702391344,4.55887423,2504.7,2504.0,0.99911]
[1729702391748,7.76667423,2504.5,2503.7,40.8]
[1729702391950,0.39965,2504.1,2504.0,0.39965]
[1729702392152,0.39965,2504.1,2503.9,0.39966]
[1729702392355,4.28158024,2504.1,2503.7,40.8]
[1729702392852,0.39967,2503.9,2503.8,0.39968]
[1729702393064,0.39969,2503.9,2503.7,41.1997]
[1729702393253,0.39969,2503.9,2503.7,40.8]
[1729702393254,0.39969,2503.8,2503.7,40.8]
[1729702393749,8.96284744,2503.8,2503.7,40.8]
[1729702394450,8.96284744,2503.8,2503.7,41.1997]
[1729702395150,4.56875744,2503.8,2503.7,41.1997]
[1729702395351,3.2078,2503.9,2503.7,40.8]
[1729702395555,3.2078,2503.9,2503.8,0.39969]
[1729702396158,0.39969,2503.8,2503.7,41.19969]
[1729702396956,3.2078,2503.9,2503.8,0.39969]
[1729702397361,7.49391039,2503.9,2503.8,0.39969]
[1729702398057,3.2078,2503.9,2503.8,4.39329]
[1729702398454,8.16216356,2503.9,2503.8,0.39969]
[1729702398649,0.39969,2503.8,2503.7,41.19969]
[1729702398848,7.76249356,2503.9,2503.7,40.8]
[1729702399256,0.3997,2503.7,2503.6,0.699]
[1729702399454,0.39982,2503.0,2502.9,0.39982]
[1729702399656,0.39982,2503.0,2502.9,0.39983]
[1729702399858,3.2078,2503.1,2502.6,2.4427]
[1729702400157,0.39982,2503.0,2502.9,0.39982]
[1729702400360,0.39985,2502.8,2502.7,0.39986]
[1729702400550,4.56392774,2503.0,2502.3,2.4947]
[1729702400750,3.2078,2502.8,2502.3,3.49452]
[1729702400955,3.2078,2502.8,2502.5,0.39988]
[1729702400956,0.39988,2502.6,2502.5,0.39988]
[1729702401560,4.35210467,2502.7,2502.6,0.39988]
[1729702401960,4.35210467,2502.7,2502.3,2.4947]
[1729702402465,3.2078,2502.5,2501.5,3.2078]
[1729702402764,4.58938558,2502.4,2502.3,0.39992]
[1729702402967,4.58938558,2502.4,2501.9,0.99996]
[1729702403154,4.58938558,2502.4,2502.3,0.39993]
[1729702403666,8.58538558,2502.4,2502.1,0.39995]
[1729702403854,3.2078,2502.2,2502.1,0.39996]
[1729702404264,7.64893013,2502.2,2502.1,0.39996]
[1729702404562,7.64893013,2502.2,2501.6,1.00009]
[1729702404563,11.64573013,2502.2,2501.6,1.00009]
[1729702404765,8.04888013,2502.2,2502.1,0.39996]
[1729702404958,0.39996,2502.1,2502.0,0.39996]
[1729702405152,8.04888013,2502.2,2501.6,1.00009]
[1729702405354,8.04888013,2502.2,2501.7,0.40001]
[1729702405355,0.40001,2501.9,2501.7,0.40001]
[1729702405555,3.2078,2501.9,2501.7,0.40001]
[1729702405754,4.33453201,2501.8,2501.7,0.40002]
[1729702405957,4.73454201,2501.8,2501.2,5.87943]
[1729702406161,4.33453201,2501.8,2501.1,3.2078]
[1729702406465,4.33453201,2501.8,2501.7,0.40002]
[1729702406662,4.33453201,2501.8,2501.6,0.40003]
[1729702406860,4.33453201,2501.8,2501.3,40.8]
[1729702407162,3.2078,2501.6,2501.3,40.8]
[1729702407467,0.40007,2501.4,2501.3,41.20009]
[1729702407764,3.2078,2501.6,2501.5,0.40006]
[1729702408158,1.99891,2503.3,2501.8,0.40001]
[1729702408159,3.2078,2501.9,2501.8,0.40001]
[1729702408562,3.2922515,2501.9,2501.8,0.40001]
[1729702408956,3.2078,2501.9,2501.8,0.40001]
[1729702409159,7.66142993,2501.9,2501.8,0.40001]
[1729702409360,11.65822993,2501.9,2501.8,0.40001]
[1729702409762,7.66142993,2501.9,2501.8,0.40001]
[1729702410667,3.2078,2501.9,2501.8,0.40001]
[1729702411060,3.2078,2501.9,2501.8,4.39681]
[1729702411277,3.2078,2502.3,2502.2,0.39994]
[1729702411765,7.79703691,2502.3,2502.2,0.39994]
[1729702412957,3.2078,2502.3,2502.2,0.39994]
[1729702413162,16.70009948,2502.3,2501.3,44.09412]
[1729702413360,16.70009948,2502.3,2501.8,0.40001]
[1729702413361,4.72,2501.9,2501.8,0.40001]
[1729702413564,3.60778,2502.0,2501.4,1.00019]
[1729702413762,4.17565948,2501.9,2501.8,0.40001]
[1729702414168,4.57564948,2501.9,2501.8,0.40001]
[1729702414363,12.49245948,2501.9,2501.4,4.20799]
[1729702414569,2.394,2501.8,2501.3,40.8]
[1729702414766,4.32,2501.6,2500.9,4.20816]
[1729702415068,4.32,2501.6,2500.7,2.2939]
[1729702415069,0.40009,2501.3,2501.2,0.4001]
[1729702415367,4.46230697,2501.3,2500.9,40.8]
[1729702415577,4.86239697,2501.3,2501.2,0.4001]
[1729702415764,4.46230697,2501.3,2501.2,0.4001]
[1729702416469,4.46230697,2501.3,2500.9,44.0078]
[1729702416670,4.46230697,2501.3,2501.2,0.4001]
[1729702416977,2.5122,2501.7,2501.3,0.40009]
[1729702416978,3.2078,2501.7,2501.3,0.40009]
[1729702417277,3.2078,2501.7,2501.6,0.40004]
[1729702417774,0.40004,2501.6,2501.5,0.40005]
[1729702418076,7.7205725,2501.7,2501.6,0.40004]
[1729702418275,3.2078,2501.7,2501.6,0.40004]
[1729702419172,3.2078,2502.0,2501.5,1.00011]
[1729702419372,3.60779,2502.0,2501.9,0.39999]
[1729702419571,0.4,2501.9,2501.8,0.4]
[1729702419772,4.98498702,2501.9,2501.8,0.4]
[1729702419974,3.9968,2501.9,2501.4,2.4901]
[1729702420172,0.40001,2501.8,2501.7,0.40001]
[1729702420470,4.31351035,2501.8,2501.3,3.2078]
[1729702420671,0.40004,2501.6,2501.5,0.40005]
[1729702421872,3.2078,2501.7,2501.6,0.40004]
[1729702421873,3.60784,2501.7,2501.6,0.40004]
[1729702422374,0.40007,2501.5,2501.4,0.40007]
[1729702422577,7.45175927,2501.7,2501.0,1.00033]
[1729702422783,0.40007,2501.5,2501.4,0.40006]
[1729702423381,0.40008,2501.4,2501.3,0.40007]
[1729702424674,3.9976,2501.4,2500.9,44.0078]
[1729702424879,0.40011,2501.2,2501.1,0.40011]
[1729702425076,7.7823676,2501.4,2500.9,40.8]
[1729702425377,4.31203772,2501.2,2501.1,0.40012]
[1729702425577,0.40011,2501.2,2501.1,0.40012]
[1729702425876,8.18818031,2501.2,2501.1,0.40012]
[1729702426077,8.58828031,2501.2,2501.1,0.40012]
[1729702426284,0.40014,2501.0,2500.9,0.40014]
[1729702426478,0.40017,2500.8,2500.7,0.40017]
[1729702426683,0.40019,2500.7,2500.6,0.40018]
[1729702426887,4.18978031,2501.0,2500.4,40.8]
[1729702427077,0.40016,2500.9,2500.8,0.40015]
[1729702427378,0.40021,2500.6,2500.5,0.40021]
[1729702427776,0.4002,2500.7,2500.6,0.4002]
[1729702428074,5.6952,2500.8,2500.3,1.00063]
[1729702428276,5.6952,2500.8,2500.2,45.00844]
[1729702428277,5.6952,2500.8,2500.7,0.40018]
[1729702428482,3.2078,2500.8,2500.7,0.40018]
[1729702428776,4.31154139,2500.7,2500.6,0.4002]
[1729702428977,5.99462,2501.1,2501.0,0.40014]
[1729702429377,4.61316137,2501.0,2500.9,0.40014]
[1729702429578,7.42082137,2501.1,2501.0,0.40014]
[1729702429789,3.48744,2501.8,2501.2,1.00025]
[1729702429790,3.2078,2501.4,2501.2,1.00025]
[1729702430080,3.2078,2501.4,2501.3,0.40009]
[1729702430470,5.5321,2501.7,2501.6,0.40004]
[1729702430671,3.2078,2501.7,2501.6,0.40004]
[1729702431773,3.60782,2501.7,2501.6,0.40004]
[1729702432079,3.2078,2501.7,2501.6,0.40004]
[1729702432879,3.60782,2501.7,2501.6,0.40004]
[1729702433085,0.40007,2501.5,2501.4,0.40006]
[1729702433277,4.32,2501.5,2501.1,3.2078]
[1729702433480,0.40008,2501.4,2501.3,0.40007]
[1729702433783,4.56081942,2501.4,2501.3,0.40007]
[1729702433979,8.15833942,2501.4,2500.7,4.20824]
[1729702434185,5.16092942,2501.4,2500.8,2.4791]
[1729702434488,0.40013,2501.1,2501.0,0.40013]
[1729702434792,0.40014,2501.0,2500.9,0.40013]
[1729702434985,0.40022,2500.5,2500.4,0.40023]
[1729702435191,0.40017,2500.9,2500.4,40.8]
[1729702435192,2.72957,2500.9,2500.4,40.8]
[1729702435479,2.72957,2500.9,2500.4,41.20022]
[1729702435480,0.40022,2500.5,2500.4,41.20022]
[1729702435674,1.00047,2500.7,2500.0,1.20074]
[1729702435880,1.00047,2500.7,2500.3,0.40023]
[1729702435881,0.40023,2500.4,2500.3,0.40023]
[1729702436076,0.40026,2500.3,2500.2,0.40025]
[1729702436279,4.22374683,2500.4,2500.3,0.40024]
[1729702436478,0.40023,2500.4,2500.3,0.40024]
[1729702436687,8.62317683,2500.4,2500.3,0.40025]
[1729702436886,4.22374683,2500.4,2500.3,0.40025]
[1729702437083,3.2078,2500.5,2500.3,40.8]
[1729702437280,4.68134075,2500.4,2500.3,40.8]
[1729702437783,4.68134075,2500.4,2500.1,0.40027]
[1729702437784,0.40026,2500.2,2500.1,0.40028]
[1729702438080,0.40028,2500.1,2500.0,0.2]
[1729702438380,12.9383628,2500.1,2499.5,2.3916]
[1729702438583,12.9383628,2500.1,2499.7,0.40034]
[1729702438584,0.40034,2499.8,2499.7,0.40034]
[1729702438772,11.3808628,2500.1,2499.4,3.2078]
[1729702438973,7.0608628,2500.1,2500.0,0.4003]
[1729702439181,8.6183628,2500.1,2499.4,3.2078]
[1729702439395,0.40032,2499.9,2499.7,0.40033]
[1729702439679,8.74640422,2499.8,2499.1,3.2078]
[1729702439882,0.40042,2499.2,2499.1,3.2078]
[1729702440082,4.32,2499.4,2498.8,0.40048]
[1729702440083,0.40046,2499.0,2498.8,0.40048]
[1729702440279,0.40046,2499.0,2498.7,0.4005]
[1729702440280,0.40048,2498.9,2498.7,0.4005]
[1729702440477,0.40055,2498.4,2498.3,0.4]
[1729702440679,16.135,2498.8,2498.3,0.4]